[Event "85th Armenian Mens-ch 2024"]
[Site "Yerevan"]
[Date "2024.11.29"]
[Round "6.1"]
[White "Sargsyan, Sargis Vach."]
[Black "Gharibyan, Mamikon"]
[Result "1-0"]
[ECO "E44"]
[WhiteElo "2321"]
[BlackElo "2462"]
[Annotator "TA"]
[PlyCount "67"]
[EventDate "2024.11.24"]
[EventCountry "ARM"]
[SourceTitle "playchess.com"]
[Source "ChessBase"]
[SourceQuality "1"]
[TimeControl "40/5400+30:1800+30"]

{[%evp 13,67,15,19,19,24,18,14,10,11,10,22,19,27,35,46,27,35,25,32,21,29,53,40,16,31,27,107,129,98,60,61,64,373,273,338,319,551,534,1430,1467,1269,310,303,276,468,356,1025,997,966,956,29988,29989,29989,29990,29995,29996]} 1. d4 {[%emt 0:00:03]} Nf6 {[%emt 0:07:14][%cal Bg8f6,Bf6e4,Be4d2][%mdl 32]} 2. c4 {[%emt 0:00:15]} e6 {[%emt 0:00:05]} 3. Nc3 {[%emt 0:00:11]} Bb4 {[%emt 0:01:03]} 4. e3 {[%emt 0:00:35]} b6 {[%emt 0:05:45]} 5. Nge2 {[%emt 0:00:18]} Ne4 {[%emt 0:03:15]} 6. Bd2 {[%emt 0:00:06]} Nxd2 {[%emt 0:01:10]} 7. Qxd2 {[%emt 0:00:04]} Bb7 {[%emt 0:00:18]} 8. a3 {[%emt 0:01:24]} Be7 {[%emt 0:00:22]} 9. d5 {[%emt 0:00:46]} O-O {[%emt 0:02:05]} 10. g3 {[%emt 0:00:35] The position is equal.} a5 {[%emt 0:06:01]} 11. Bg2 {[%emt 0:00:37]} Na6 {[%emt 0:00:28] Black is weak on the light squares} 12. O-O {[%emt 0:01:26][%cal Od5d6] d6! is the strong threat.} Qc8 {[%emt 0:06:46]} 13. Rab1 {[%emt 0:08:44]} Rd8 {[%emt 0:03:42]} 14. f4 {[%emt 0:04:53]} Nc5 {[%emt 0:04:08]} 15. b4 {[%emt 0:02:19]} axb4 {[%emt 0:02:30]} 16. axb4 {[%emt 0:00:04]} Na4 {[%emt 0:05:54]} 17. Ne4 {[%emt 0:02:18]} b5 {[%emt 0:02:56]} 18. f5 {[%emt 0:22:42]} exf5 {[%emt 0:03:09]} 19. Rxf5 {[%emt 0:00:02]} bxc4 {[%emt 0:01:45] [#]} (19... Nb6 $11 {remains equal.}) 20. Nf4 $1 $16 {[%emt 0:04:32] And now Qd4 would win.} Rf8 {[%emt 0:21:48] White must now prevent ...d6.} 21. Nh5 {[%emt 0:02:29] aiming for Qd4.} (21. Qd4 {is interesting.} Ra6 22. d6 Bxe4 23. Nh5) 21... f6 {[%emt 0:02:11]} 22. Qd4 {[%emt 0:01:27][%cal Of5g5] Strongly threatening Rg5! White is much more active.} c3 $2 {[%emt 0:09:47][%mdl 8192] [#] Loses the game.} 23. Rg5 $3 {[%emt 0:12:30][%mdl 512]} Rf7 {[%emt 0:03:27]} (23... g6 24. Nhxf6+) 24. Nexf6+ {[%emt 0:03:54]} Kh8 $2 {[%emt 0:02:10] [#]} (24... Bxf6 25. Nxf6+ Rxf6) 25. Nxh7 $1 $18 {[%emt 0:00:37][%mdl 512]} Bxg5 {[%emt 0:01:49]} (25... Qg8 26. N7f6) 26. Nxg5 {[%emt 0:00:09]} Qe8 {[%emt 0:00:12]} 27. Nxf7+ $2 {[%emt 0:03:25]} (27. Qd3 {[%csl Gg5][%cal Rd3h7]} Rf5 28. Qxf5 Qxh5 29. Nf7+ Qxf7 30. Qxf7) 27... Qxf7 {[%emt 0:00:05]} 28. Nf4 {[%emt 0:00:02][%cal Bh5f4,Bf4g6,Bg6e7][%mdl 32]} Nb6 $2 {[%emt 0:02:04]} (28... Kg8 29. Rc1 Qf6 30. Qxf6 gxf6) 29. Rf1 {[%emt 0:03:20][%cal Od4e4] Qe4! would now be deadly.} Qf6 $2 {[%emt 0:01:25]} (29... c2 30. Be4 Ba6) 30. Qe4 {[%emt 0:00:35] Intending Ng6+ and mate.} Kg8 {[%emt 0:00:27]} 31. Ng6 {[%emt 0:02:13]} Qg5 {[%emt 0:00:34]} 32. Ne7+ {[%emt 0:00:29] White mates.} Kh8 {[%emt 0:00:01]} 33. Rf4 {[%emt 0:00:35]} g6 {[%emt 0:00:59]} 34. Qd4+ {[%emt 0:00:03] Weighted Error Value: White=0.39/Black=0.67.  Loses game:     	---       	Black=1      Mistake:       	---       	Black=4      Inaccurate:     	White=1     	Black=1      OK:         	White=6     	Black=8      Best:        	White=1     	---        Strong:       	White=1     	---        Brilliant:      	White=1     	---} (34. Qxg6 $2 {perishes.} Ra1+ 35. Kf2 (35. Bf1 $2 Qxg6 36. Nxg6+ Kg7 $19) 35... Qxg6 36. Nxg6+ Kg7 $19) 1-0

[Event "85th Armenian Mens-ch 2024"]
[Site "Yerevan"]
[Date "2024.11.29"]
[Round "6.2"]
[White "Davtyan, Arsen"]
[Black "Gasparyan, Erik R."]
[Result "1/2-1/2"]
[ECO "D38"]
[WhiteElo "2400"]
[BlackElo "2371"]
[Annotator "TA"]
[PlyCount "82"]
[EventDate "2024.11.24"]
[EventCountry "ARM"]
[SourceTitle "playchess.com"]
[Source "ChessBase"]
[SourceQuality "1"]
[TimeControl "40/5400+30:1800+30"]

{[%evp 9,82,12,23,7,12,10,11,12,16,14,12,9,37,39,61,59,42,62,55,-45,-43,-46,-47,-46,-49,-132,-85,-72,-39,-26,-34,-33,-42,-35,0,-2,0,-14,-15,-7,14,0,0,0,0,0,0,0,0,0,0,0,0,0,0,0,0,0,0,0,0,0,0,0,0,0,8,0,0,0,0,0,0,0,26]} 1. d4 {[%emt 0:00:03]} Nf6 {[%emt 0:02:16][%cal Bg8f6,Bf6e4,Be4c3][%mdl 32]} 2. c4 {[%emt 0:00:07]} e6 {[%emt 0:00:17]} 3. Nf3 {[%emt 0:00:07]} d5 {[%emt 0:00:07]} 4. Nc3 {[%emt 0:00:06]} Bb4 {[%emt 0:00:07]} 5. cxd5 {[%emt 0:02:12]} exd5 {[%emt 0:00:08]} 6. Bf4 {[%emt 0:00:04]} Ne4 {[%emt 0:00:31]} 7. Rc1 {[%emt 0:00:04]} Qe7 {[%emt 0:00:11]} 8. Nd2 {[%emt 0:03:39]} Nxc3 $1 {[%emt 0:00:08]} 9. bxc3 {[%emt 0:00:04]} Ba3 {[%emt 0:00:02]} 10. Rb1 {[%emt 0:00:29]} O-O {[%emt 0:00:25]} 11. e3 {[%emt 0:04:29]} g5 {[%emt 0:00:13]} 12. Bg3 {[%emt 0:08:46]} f5 {[%emt 0:00:06]} 13. Be5 $1 {[%emt 0:10:02]} Nc6 {[%emt 0:00:38]} 14. Qb3 {[%emt 0:35:06]} ({White must play} 14. f4 $1 $14) 14... Nxe5 $15 {[%emt 0:06:25]} 15. dxe5 {[%emt 0:00:02]} f4 $36 {[%emt 0:08:33][%mdl 2048] Black has some pressure.} 16. Qxd5+ {[%emt 0:15:21]} Kh8 $1 {[%emt 0:00:05]} (16... Be6 17. Qxe6+ Qxe6 18. Bc4 $18 (18. Rxb7 $2 fxe3 19. fxe3 Qxe5 $19)) 17. exf4 {[%emt 0:00:57]} (17. e6 $1 $15) 17... c6 {[%emt 0:13:47]} ({Better is} 17... Rxf4 {Strongly threatening ...Bf5.} 18. Be2 Be6 19. Qxb7 Rd8) 18. Qb3 $17 {[%emt 0:01:39]} Rxf4 {[%emt 0:00:01][%cal Oc8f5]} (18... Bf5 $5 19. Rd1 a5 $15 (19... gxf4 20. Nf3 $11)) 19. Be2 {[%emt 0:02:06][%cal Bf1e2,Be2f3,Bf3e4][%mdl 32]} Bc5 {[%emt 0:09:14]} 20. O-O {[%emt 0:03:09]} Qxe5 {[%emt 0:02:08]} 21. Rbe1 {[%emt 0:02:07]} Qf6 {[%emt 0:08:11][%cal Oc8f5]} (21... g4 $5) 22. Bf3 {[%emt 0:04:20] Re8+ is the strong threat.} Bf5 {[%emt 0:00:26] This pair of bishops is nice.} 23. Ne4 {[%emt 0:04:11]} Bxe4 {[%emt 0:00:37]} 24. Rxe4 {[%emt 0:00:01]} g4 {[%emt 0:03:33]} 25. Qc4 {[%emt 0:01:08]} Rxe4 {[%emt 0:04:24]} 26. Bxe4 {[%emt 0:00:01]} Qe5 {[%emt 0:08:14]} 27. Qf7 {[%emt 0:00:47][%csl Ge4,LRb7,LRh7][%cal Rf7h7]} Qe7 {[%emt 0:17:29]} (27... Qxe4 $5 28. Qf6+ $8 (28. Qxb7 $2 {loses.} Rf8 $19) 28... Kg8 29. Qg5+ Kh8 30. Qxc5 b6 $14) 28. Qxe7 {[%emt 0:00:08]} Bxe7 $11 {[%emt 0:00:04][%mdl 4096] Endgame KRB-KRB} 29. Rd1 {[%emt 0:00:51]} Bc5 {[%emt 0:01:10]} 30. Kf1 {[%emt 0:00:38]} Rf8 {[%emt 0:00:18]} 31. f3 {[%emt 0:00:24]} Rf7 {[%emt 0:00:05] Wards off Rd7} 32. Ke2 {[%emt 0:00:19]} gxf3+ {[%emt 0:00:26]} 33. Bxf3 {[%emt 0:00:01]} Kg7 {[%emt 0:00:14]} 34. Kd3 {[%emt 0:00:25]} Bd6 {[%emt 0:00:28]} 35. h3 {[%emt 0:00:12]} Be5 {[%emt 0:00:03]} 36. Kc2 {[%emt 0:00:57]} Kf6 {[%emt 0:00:59]} 37. Bg4 {[%emt 0:00:51]} Kg6 {[%emt 0:02:19]} 38. Bf3 {[%emt 0:00:39]} Kg5 {[%emt 0:01:34]} 39. Rd3 {[%emt 0:01:15]} Bf6 {[%emt 0:01:31]} 40. Bg4 {[%emt 0:00:00]} Re7 {[%emt 0:00:00]} 41. Rd7 {[%emt 0:07:57]} h5 {[%emt 0:02:29]} 1/2-1/2

[Event "85th Armenian Mens-ch 2024"]
[Site "Yerevan"]
[Date "2024.11.29"]
[Round "6.3"]
[White "Agasarov, Benik"]
[Black "Piliposyan, Robert"]
[Result "1-0"]
[ECO "B47"]
[WhiteElo "2410"]
[BlackElo "2418"]
[Annotator "TA"]
[PlyCount "59"]
[EventDate "2024.11.24"]
[EventCountry "ARM"]
[SourceTitle "playchess.com"]
[Source "ChessBase"]
[SourceQuality "1"]
[TimeControl "40/5400+30:1800+30"]

{[%evp 11,59,12,18,18,11,26,30,24,21,27,27,23,39,30,66,62,61,61,111,104,112,104,108,53,50,55,100,100,96,106,95,95,98,85,83,83,85,77,205,231,224,222,253,239,233,228,1106,1098,1399,1383]} 1. e4 {[%emt 0:00:04]} c5 {[%emt 0:00:21]} 2. Nf3 {[%emt 0:00:10]} e6 {[%emt 0:00:06]} 3. d4 {[%emt 0:00:15]} cxd4 {[%emt 0:00:05]} 4. Nxd4 {[%emt 0:00:03]} Nc6 {[%emt 0:00:05]} 5. Nc3 {[%emt 0:00:28]} Qc7 {[%emt 0:00:21]} 6. Be2 {[%emt 0:01:39]} Nf6 {[%emt 0:00:59]} 7. Qd3 {[%emt 0:01:12]} a6 {[%emt 0:32:18]} 8. Nxc6 {[%emt 0:00:20]} bxc6 {[%emt 0:01:17]} 9. Qg3 {[%emt 0:00:16]} Qxg3 {[%emt 0:00:24]} 10. hxg3 {[%emt 0:00:05]} d5 {[%emt 0:01:51]} 11. g4 {[%emt 0:00:19]} Bb4 {[%emt 0:00:19]} 12. Bd2 {[%emt 0:00:53]} Rb8 {[%emt 0:07:06]} 13. O-O-O {[%emt 0:09:30]} O-O {[%emt 0:06:40]} 14. f3 {[%emt 0:11:28]} Rd8 {[%emt 0:07:24]} (14... h6 $14) 15. Bd3 $16 {[%emt 0:07:31]} h6 {[%emt 0:14:04]} 16. Bf4 {[%emt 0:05:31]} Ra8 {[%emt 0:03:39]} 17. Na4 {[%emt 0:03:42]} (17. g5 $16 Bxc3 18. bxc3 dxe4 19. fxe4) 17... Nd7 $14 {[%emt 0:01:25]} 18. g5 {[%emt 0:02:30]} e5 {[%emt 0:02:03]} 19. Bg3 {[%emt 0:01:14]} hxg5 {[%emt 0:04:28]} 20. exd5 {[%emt 0:00:13]} cxd5 {[%emt 0:00:16]} 21. Bh7+ {[%emt 0:00:26]} Kf8 {[%emt 0:00:04]} 22. Rxd5 {[%emt 0:01:32][%cal Oa2a3] Hoping for a3!. White is more active.} Bb7 {[%emt 0:02:31] [#]} 23. Rxd7 $1 {[%emt 0:00:25]} Rxd7 {[%emt 0:00:04]} 24. Nb6 $1 {[%emt 0:00:03]} Rd2 {[%emt 0:08:54]} (24... Rdd8 $16) 25. Be1 $1 $18 {[%emt 0:02:17]} Rad8 {[%emt 0:00:39][%csl Gd8][%cal Rd2d1]} 26. Bd3 $1 $40 {[%emt 0:00:20][%mdl 128] Black is in trouble.} Bc5 {[%emt 0:01:29]} (26... R8xd3 27. cxd3 Rxg2 28. Bxb4+) 27. Bxd2 {[%emt 0:00:25]} Bxb6 {[%emt 0:00:05]} 28. Bb4+ {[%emt 0:01:32]} Ke8 $2 {[%emt 0:00:30] [#]} (28... Kg8 29. Bh7+ Kh8) 29. Bf5 $1 {[%emt 0:00:04][%cal Rh1h8]} (29. Rh8+ Kd7 30. Bf5+ Kc7 31. Rxd8 Kxd8 $11) 29... f6 {[%emt 0:03:06] [#]} 30. Be6 $1 {[%emt 0:00:01]} 1-0

[Event "85th Armenian Mens-ch 2024"]
[Site "Yerevan"]
[Date "2024.11.29"]
[Round "6.4"]
[White "Babujian, Levon"]
[Black "Hakobyan, Erik"]
[Result "1/2-1/2"]
[ECO "D85"]
[WhiteElo "2330"]
[BlackElo "2409"]
[Annotator "TA"]
[PlyCount "93"]
[EventDate "2024.11.24"]
[EventCountry "ARM"]
[SourceTitle "playchess.com"]
[Source "ChessBase"]
[SourceQuality "1"]
[TimeControl "40/5400+30:1800+30"]

{[%evp 26,93,11,5,16,7,2,29,26,0,0,0,0,8,6,0,5,4,0,0,0,0,365,0,0,0,0,0,0,0,0,0,0,0,0,0,0,0,8,8,8,8,8,10,53,61,85,8,8,0,0,0,0,0,0,0,0,0,0,0,0,0,0,-9,-9,-9,-9,-9,-9,-9]} 1. d4 {[%emt 0:02:44]} Nf6 {[%emt 1:31:00]} 2. c4 {[%emt 1:28:46]} g6 {[%emt 0:00:30]} 3. Nc3 {[%emt 0:00:30]} d5 {[%emt 0:00:30]} 4. cxd5 {[%emt 0:00:30]} Nxd5 {[%emt 0:00:30]} 5. e4 {[%emt 0:00:30]} Nxc3 {[%emt 0:00:30]} 6. bxc3 {[%emt 0:00:30]} Bg7 {[%emt 0:00:30]} 7. Nf3 {[%emt 0:00:30]} c5 {[%emt 0:00:30]} 8. Rb1 {[%emt 0:00:30]} O-O {[%emt 0:00:30]} 9. Be2 {[%emt 0:00:30]} cxd4 {[%emt 0:00:30]} 10. cxd4 {[%emt 0:00:30]} Qa5+ {[%emt 0:00:30]} 11. Bd2 {[%emt 0:00:30]} Qxa2 {[%emt 0:00:30]} 12. O-O {[%emt 0:00:30]} Bg4 {[%emt 0:00:30]} 13. Be3 {[%emt 0:00:30]} Nc6 {[%emt 0:00:30]} 14. d5 {[%emt 0:00:30]} Ne5 {[%emt 0:00:30]} 15. Rxb7 {[%emt 0:00:30]} a5 {[%emt 0:00:30]} 16. Rxe7 {[%emt 0:00:30]} a4 {[%emt 0:00:30]} 17. Re1 {[%emt 0:00:30]} (17. Nxe5 Bxe2 18. Qa1 Qxa1 19. Rxa1 Bf6 $17) 17... a3 {[%emt 0:00:30] and ...Bxf3 would now be decisive} 18. Nxe5 {[%emt 0:00:30]} Bxe2 {[%emt 0:00:30]} 19. Rxe2 {[%emt 0:00:30]} Qxe2 {[%emt 0:00:30]} 20. Qxe2 {[%emt 0:00:30]} a2 {[%emt 0:00:30]} 21. Bd4 {[%emt 0:00:30]} a1=Q+ {[%emt 0:00:00]} 22. Bxa1 {[%emt 0:00:00]} Rxa1+ {[%emt 0:01:00]} 23. Qf1 $1 {[%emt 0:01:00]} Rxf1+ {[%emt 0:00:30]} 24. Kxf1 $11 {[%emt 0:00:30][%mdl 4096] Endgame KRB-KRN. White is two pawns up.} Bf6 {[%emt 0:00:00]} 25. Nc6 {[%emt 0:00:00]} Bxe7 {[%emt 0:00:00]} 26. Nxe7+ {[%emt 0:00:00] KR-KN} Kg7 {[%emt 0:01:30]} 27. Nc6 {[%emt 0:01:30]} Rc8 {[%emt 0:00:30]} 28. g4 {[%emt 0:00:30]} Kf8 {[%emt 0:00:00]} 29. g5 {[%emt 0:00:30]} Ke8 {[%emt 0:01:00]} 30. Kg2 {[%emt 0:00:30]} Ra8 {[%emt 0:00:30]} 31. Kg3 {[%emt 0:00:30]} Ra3+ {[%emt 0:00:30]} 32. f3 {[%emt 0:00:30]} Ra1 {[%emt 0:00:30]} 33. Ne5 {[%emt 0:00:00]} Ke7 {[%emt 0:00:00]} 34. Ng4 {[%emt 0:00:00]} Kd6 {[%emt 0:00:00]} 35. Nf6 {[%emt 0:00:00][%cal Of3f4]} Rg1+ {[%emt 0:00:00] [#]} 36. Kf4 {[%emt 0:00:00]} ({White should play} 36. Kf2 $1 $16 {[%cal Rf2g1]} Rh1 37. Kg2 (37. Nxh7 $2 {perishes.} Rxh2+ 38. Kg3 Rxh7 $19)) 36... Rh1 {[%emt 0:00:00]} 37. e5+ {[%emt 0:00:00]} Ke7 {[%emt 0:00:00]} 38. Ng4 {[%emt 0:00:00]} Rd1 {[%emt 0:03:00]} 39. Nf6 {[%emt 0:03:30]} Rh1 {[%emt 0:00:30]} 40. d6+ {[%emt 0:00:30]} Kd8 {[%emt 0:00:30]} 41. Kg3 {[%emt 0:30:30][%cal Og3g2]} Rg1+ $1 {[%emt 0:00:00]} 42. Kf4 {[%emt 0:00:00]} Rh1 {[%emt 0:00:00]} 43. e6 {[%emt 0:00:00]} fxe6 {[%emt 0:00:00]} ({Stronger than} 43... Rxh2 44. exf7 (44. e7+ Kc8 45. e8=Q+ Kb7 46. Qb5+ Ka7 47. Nd5 Rh4+ 48. Ke3 Ka8 49. Qa5+ Kb8 50. Qc7+ Ka8 51. Nb6#) 44... Kc8 45. d7+ (45. f8=B Rd2 $18) 45... Kc7 46. f8=Q (46. f8=R Rd2 $18) (46. d8=Q+ Kxd8 47. f8=Q+ Kc7 $18) 46... Rd2 47. Qc5+ (47. Nxh7 Rxd7 48. Nf6 Rd1 $18) (47. Qc8+ Kb6 48. Qc4 Rd6 49. Nd5+ Ka7 50. d8=Q Rf6+ 51. Nxf6 h6 52. Qcd4+ Kb7 53. Q4b6#) 47... Kd8 48. Nd5 (48. Nxh7 Rxd7 49. Nf6 Rd1 50. Nd5 Re1 51. Qa5+ Kd7 52. Qxe1 Kd6 53. Qe5+ Kc5) (48. Qc8+ Ke7 49. Qe8+ Kd6 50. d8=Q+ Kc5 51. Qa5+ Kc4 52. Qeb5+ Kd4 53. Qxd2#) 48... Kxd7 49. Qc7+ Ke6 50. Qc6+ Kf7 51. Qf6+ Kg8 52. Ne7#) 44. Nxh7 {[%emt 0:00:00]} Rxh2 {[%emt 0:00:00]} (44... Kd7 $5) 45. Nf8 {[%emt 0:00:00][%csl LRe6,LRg6][%cal Of4e5]} Re2 {[%emt 0:00:00]} 46. Nxg6 {[%emt 0:00:00] Threatens to win with Ne5.} Kd7 {[%emt 0:00:00]} 47. Kg4 {[%emt 0:00:00]} 1/2-1/2

[Event "85th Armenian Mens-ch 2024"]
[Site "Yerevan"]
[Date "2024.11.29"]
[Round "6.6"]
[White "Shahinyan, Vladimir"]
[Black "Pogosyan, Stefan"]
[Result "1/2-1/2"]
[ECO "C45"]
[WhiteElo "2161"]
[BlackElo "2407"]
[Annotator "TA"]
[PlyCount "98"]
[EventDate "2024.11.24"]
[EventCountry "ARM"]
[SourceTitle "playchess.com"]
[Source "ChessBase"]
[SourceQuality "1"]
[TimeControl "40/5400+30:1800+30"]

{[%evp 13,98,12,10,6,8,10,25,0,0,-38,-32,-44,-34,-33,-37,-43,0,0,0,0,0,0,0,0,0,0,0,0,0,0,0,0,0,0,0,0,35,16,20,0,0,0,0,-8,-6,-84,-54,-826,-833,-875,-871,-838,-835,-792,-790,-743,-667,-410,-8,-8,-8,-8,-8,-33,-33,-207,-178,-195,-13,-8,0,-18,-64,-32,-18,-18,-18,-18,0,0,0,0,0,0,0,0,0]} 1. e4 {[%emt 0:01:35]} e5 {[%emt 0:03:38]} 2. Nf3 {[%emt 0:00:58]} Nc6 {[%emt 0:00:07]} 3. d4 {[%emt 0:00:08]} exd4 {[%emt 0:01:02]} 4. Nxd4 {[%emt 0:00:10]} Bc5 {[%emt 0:00:09]} 5. Nxc6 {[%emt 0:00:56]} Qf6 {[%emt 0:00:19]} 6. Qf3 {[%emt 0:00:22]} Qxf3 {[%emt 0:07:44]} 7. gxf3 {[%emt 0:00:08]} bxc6 {[%emt 0:07:51]} 8. Be3 {[%emt 0:00:36]} Bb6 {[%emt 0:00:54]} 9. Rg1 {[%emt 0:05:32]} Ne7 {[%emt 0:00:29]} 10. Nd2 {[%emt 0:01:16] White has an edge.} (10. Rxg7 Bxe3 11. fxe3 Ng6 $17) 10... O-O {[%emt 0:07:14]} 11. a4 {[%emt 0:11:13]} f5 {[%emt 0:08:26]} 12. Bg5 {[%emt 0:27:05]} Ng6 {[%emt 0:03:38]} 13. a5 {[%emt 0:00:30]} Bd4 {[%emt 0:11:24]} 14. c3 {[%emt 0:01:04]} Be5 {[%emt 0:00:43]} 15. Bc4+ {[%emt 0:01:31]} Kh8 {[%emt 0:01:26]} 16. exf5 $1 {[%emt 0:01:56]} Bxh2 {[%emt 0:02:47]} 17. Rh1 {[%emt 0:18:06]} Rxf5 {[%emt 0:00:56]} 18. Be3 {[%emt 0:01:30]} Bf4 {[%emt 0:10:44]} 19. Bd3 {[%emt 0:01:46]} Rf6 {[%emt 0:03:15]} 20. Bxg6 {[%emt 0:03:58]} Bxe3 {[%emt 0:01:17]} 21. Rxh7+ {[%emt 0:00:08]} Kg8 {[%emt 0:00:14]} 22. fxe3 {[%emt 0:00:06]} Rxg6 {[%emt 0:00:06]} 23. Rh1 {[%emt 0:00:39]} Rb8 $36 {[%emt 0:02:17][%mdl 2048] Black fights for an advantage.} 24. O-O-O {[%emt 0:02:16]} d5 {[%emt 0:06:13]} 25. Rh5 {[%emt 0:04:49]} Be6 {[%emt 0:00:48]} 26. b4 {[%emt 0:02:37]} c5 $1 {[%emt 0:01:00]} 27. e4 {[%emt 0:00:47]} cxb4 {[%emt 0:09:28]} 28. exd5 {[%emt 0:00:04]} bxc3 {[%emt 0:02:18]} 29. Nc4 {[%emt 0:00:09]} (29. Ne4 $11 c2 30. Kxc2) 29... Bf7 $17 {[%emt 0:01:30]} 30. Ne5 $2 {[%emt 0:01:33][%mdl 8192]} (30. Rh4 $15) 30... Rg2 $19 {[%emt 0:01:50]} 31. Rh4 {[%emt 0:03:12]} Rbb2 {[%emt 0:02:39][%csl Gb2][%cal Rg2c2]} 32. Rdh1 {[%emt 0:00:07] [#]} g5 $1 {[%emt 0:00:19]} ({Inferior is} 32... Bxd5 33. Rh8#) (32... Rgc2+ 33. Kd1 Rd2+ (33... Bxd5 34. Rh8#) 34. Kc1 Rdc2+ (34... Rxd5 35. Rh8#) 35. Kd1 $11) 33. Rh8+ {[%emt 0:02:08]} Kg7 {[%emt 0:00:01] White must now prevent ...Ra2.} 34. R8h7+ {[%emt 0:02:32]} Kf6 {[%emt 0:00:16]} 35. Ng4+ {[%emt 0:01:16] [#]} Rxg4 $1 {[%emt 0:02:21][%mdl 512]} 36. Rxf7+ $1 $11 {[%emt 0:00:06]} Kxf7 {[%emt 0:00:06]} 37. fxg4 $19 {[%emt 0:00:03][%mdl 4096] Endgame. KR-KR} Rb5 {[%emt 0:02:26]} 38. a6 {[%emt 0:02:19]} Ke7 {[%emt 0:00:54][%cal Oe7d6] And now ...Kd6! would win.} (38... Rxd5 39. Rh7+ Kf6 40. Rxc7 $11) 39. Rh8 $2 {[%emt 0:01:18]} (39. Kc2 $15) 39... Rxd5 {[%emt 0:00:36]} 40. Ra8 {[%emt 0:00:00]} Ra5 $2 {[%emt 0:00:00]} (40... Kd6 $19 {Strongly threatening ...Kc6.} 41. Kc2 Kc6 42. Rxa7 Rd8) 41. Rxa7 $11 {[%emt 0:00:24]} Kd6 {[%emt 0:03:38]} 42. Ra8 {[%emt 0:02:30]} Kc5 {[%emt 0:04:49]} (42... Kd5 $11 {might be stronger.}) 43. Rg8 $1 $15 {[%emt 0:03:11]} Kb6 {[%emt 0:12:51]} 44. Rg6+ $1 {[%emt 0:01:16] The position is equal.} c6 {[%emt 0:00:28][%cal Oa5c5] Threatens to win with ...Rc5!} 45. a7 $1 {[%emt 0:00:17]} Kxa7 {[%emt 0:00:22]} 46. Rxc6 {[%emt 0:00:08]} Ra4 {[%emt 0:00:06]} 47. Rxc3 {[%emt 0:00:15]} Rxg4 {[%emt 0:00:08]} 48. Kd2 {[%emt 0:00:48]} Rg2+ {[%emt 0:00:25]} 49. Ke1 {[%emt 0:00:08]} Kb6 {[%emt 0:00:05] Weighted Error Value: White=0.26 (precise) /Black=0.24 (precise) .  Loses game:     	White=2     	---        Missed win:     	---       	Black=1      Mistake:       	White=1     	Black=1      Inaccurate:     	White=1     	Black=2      OK:         	White=12    	Black=16     Best:        	White=6     	Black=3      Strong:       	White=4     	Black=1} 1/2-1/2